bitfinex-derivatives/quotes_ETHF0:USTF0_20260209
["timestamp","ask_amount","ask_price","bid_price","bid_amount"]
[1770614713772,11.83845037,2090.5,2089.8,11.25830339]
[1770614714373,11.83845037,2090.5,2089.8,0.00544436]
[1770614715078,11.53174655,2089.9,2089.0,11.25285903]
[1770614716076,11.53174655,2089.9,2089.0,11.25671607]
[1770614716474,5.70734829,2090.3,2089.0,11.25671607]
[1770614716475,11.53174655,2090.1,2089.0,11.25671607]
[1770614717075,11.53174655,2090.1,2089.1,11.49899294]
[1770614717773,11.53174655,2090.1,2089.1,14.24958316]
[1770614718081,11.6218376,2090.4,2089.2,11.49899294]
[1770614718377,11.6218376,2090.4,2089.1,7.02064323]
[1770614718378,11.6218376,2090.4,2089.4,11.49899294]
[1770614722186,11.6218376,2090.7,2089.5,14.24958316]
[1770614722484,11.6218376,2090.7,2089.6,11.49899294]
[1770614722688,11.6218376,2090.7,2089.8,11.49899294]
[1770614727091,11.6218376,2090.7,2089.6,11.49899294]
[1770614728196,11.6218376,2090.7,2089.7,11.49899294]
[1770614728896,11.6218376,2090.7,2089.8,11.49899294]
[1770614731300,11.6218376,2090.7,2089.9,11.49899294]
[1770614732595,0.00435452,2091.1,2089.9,15.76904595]
[1770614732596,11.6218376,2091.0,2089.9,15.76904595]
[1770614732801,11.6218376,2091.0,2090.0,11.49899294]
[1770614734203,15.0,2092.0,2091.3,0.23927]
[1770614734407,5.71819025,2092.9,2091.0,4.26996226]
[1770614734408,11.90151163,2091.8,2091.0,4.26996226]
[1770614734704,11.90151163,2091.8,2091.6,4.26996226]
[1770614734902,5.92010118,2091.8,2091.7,5.28119335]
[1770614735104,5.92488003,2091.8,2091.7,5.2855768]
[1770614735303,14.96221195,2091.8,2091.7,5.2855768]
[1770614735504,22.96852471,2091.8,2091.7,5.2855768]
[1770614735709,32.04842353,2091.8,2091.7,5.2855768]
[1770614736404,9.04211077,2091.8,2091.5,6.31638848]
[1770614736608,9.04211077,2091.8,2091.6,11.3615696]
[1770614736906,9.03772726,2091.8,2091.6,6.31638848]
[1770614737805,0.00039534,2091.8,2091.6,6.32086396]
[1770614739311,28.66548228,2091.7,2091.3,6.31997765]
[1770614739504,20.65916952,2091.7,2091.4,5.03144819]
[1770614739704,20.65916952,2091.7,2091.3,6.31997765]
[1770614740008,20.65916952,2091.7,2091.4,5.03151039]
[1770614740210,20.65916952,2091.7,2091.4,5.03671114]
[1770614740405,19.62815036,2091.7,2091.4,5.03671114]
[1770614740611,28.66548228,2091.7,2091.4,5.03671114]
[1770614741215,28.66548228,2091.7,2091.4,0.00520075]
[1770614741417,10.76351995,2091.7,2091.4,6.28532548]
[1770614741621,10.75904447,2091.7,2091.4,6.28532548]
[1770614742012,0.00039534,2091.8,2091.4,6.28532548]
[1770614742212,11.90151164,2092.7,2091.4,6.28532548]
[1770614742510,11.90151164,2092.3,2091.5,5.02255549]
[1770614742706,11.90151164,2092.3,2091.4,0.00520075]
[1770614742908,26.90151164,2092.2,2091.5,5.0224145]
[1770614743106,11.90151164,2092.1,2091.5,5.0224145]
[1770614743311,13.62322419,2092.1,2091.4,0.00520075]
[1770614743519,15.00358533,2092.2,2091.4,0.00520075]
[1770614743520,26.90151164,2092.0,2091.4,0.00520075]
[1770614743711,26.90509697,2092.2,2091.4,5.02497284]
[1770614743911,11.90151164,2092.1,2091.5,5.01977209]
[1770614744115,11.90151164,2092.1,2091.4,0.00520075]
[1770614744312,15.0,2092.0,2091.4,0.00520075]
[1770614744514,0.00358533,2092.2,2091.6,0.23923]
[1770614744718,11.90151164,2092.5,2091.7,5.01786142]
[1770614744912,11.90151164,2092.5,2091.7,5.29617053]
[1770614745217,11.8955639,2093.2,2091.8,5.01786142]
[1770614745417,11.8955639,2093.0,2091.9,5.01786142]
[1770614745617,11.8955639,2093.0,2091.7,4.78749137]
[1770614745618,11.8955639,2093.0,2092.0,5.01786142]
[1770614745817,11.8955639,2093.0,2092.1,5.01138455]
[1770614746017,11.89915213,2093.0,2091.9,4.26996226]
[1770614746213,11.89915213,2093.0,2092.0,5.0111359]
[1770614746613,11.8955639,2092.7,2092.0,5.0111359]
[1770614748318,11.8955639,2092.5,2091.9,0.2392]
[1770614748515,11.8955639,2092.5,2091.9,5.23941518]
[1770614748716,11.8955639,2092.5,2091.9,5.00021518]
[1770614749020,11.8955639,2092.8,2091.9,5.00021518]
[1770614749214,13.61727645,2092.8,2091.9,5.00021518]
[1770614749412,11.8955639,2092.8,2091.9,5.00021518]
[1770614749816,11.8955639,2092.6,2091.9,5.00021518]
[1770614750025,11.8955639,2092.6,2092.0,5.00021518]
[1770614750219,11.8955639,2092.6,2091.7,4.78748137]
[1770614750416,11.8955639,2092.6,2091.8,4.99965439]
[1770614750722,11.8955639,2092.6,2091.9,4.99965439]
[1770614751421,11.8955639,2092.9,2091.9,4.99965439]
[1770614751624,13.61727645,2092.9,2091.9,4.99965439]
[1770614751821,13.61727645,2092.9,2092.0,4.99965439]
[1770614754624,13.61727645,2092.9,2092.1,4.99965439]
[1770614754923,13.61727645,2092.9,2091.9,4.50916226]
[1770614755122,13.61727645,2092.9,2092.0,4.999381]
[1770614755322,13.61727645,2092.9,2092.1,4.999381]
[1770614755821,13.61727645,2092.9,2092.2,4.999381]
[1770614756021,13.61727645,2092.9,2092.0,4.26996226]
[1770614756222,13.61727645,2092.9,2092.1,9.27086428]
[1770614756425,13.61727645,2092.9,2092.2,5.00090202]
[1770614756724,13.61727645,2092.9,2092.3,5.00294082]
[1770614756923,13.61727645,2092.9,2092.1,4.26996226]
[1770614757123,13.61727645,2092.9,2092.2,5.0028902]
[1770614757321,13.61727645,2092.9,2092.3,5.0028902]
[1770614757622,13.61727645,2092.9,2092.1,4.26996226]
[1770614757823,13.61727645,2092.9,2092.2,5.0064218]
[1770614758023,13.61727645,2092.9,2092.3,5.0064218]
[1770614758320,13.61727645,2092.9,2092.1,4.26996226]
[1770614758519,13.61727645,2092.9,2092.2,5.01001213]
[1770614758719,11.8955639,2092.5,2092.1,4.26996226]
[1770614758921,11.8955639,2092.5,2091.9,4.26996226]
[1770614759123,13.55957129,2092.2,2091.9,4.26996226]
[1770614759417,9.97208995,2092.2,2091.9,4.26996226]
[1770614759617,9.97208995,2092.2,2091.8,4.26996226]
[1770614760417,9.97208995,2092.2,2091.7,2.3172894]
[1770614760615,9.97208995,2092.2,2091.4,14.60458745]
[1770614760818,9.97208995,2092.2,2091.5,8.90610368]
[1770614761926,9.97208995,2092.2,2091.4,5.69848377]
[1770614762121,9.97208995,2092.2,2091.4,14.47240424]
[1770614762428,9.97208995,2092.2,2091.5,5.69328302]
[1770614763426,9.97208995,2092.2,2091.4,0.28561511]
[1770614763427,9.97208995,2092.2,2091.6,5.69328302]
[1770614763928,9.97208995,2092.2,2091.6,14.46720349]
[1770614764428,9.97208995,2092.2,2091.8,8.78174156]
[1770614764624,3.99165929,2092.2,2091.8,14.47502458]
[1770614764828,3.99165929,2092.2,2091.9,5.69328302]
[1770614765028,3.99165929,2092.2,2091.8,5.69328302]
[1770614765923,3.99165929,2092.2,2091.5,11.65907197]
[1770614766327,3.99165929,2092.2,2091.4,7.40237013]
[1770614766529,3.99165929,2092.2,2091.4,19.0614421]
[1770614768330,3.99165929,2092.2,2091.5,11.65907197]
[1770614770031,11.83785874,2092.3,2091.7,11.65907197]
[1770614770627,11.83785874,2092.3,2091.8,16.40579324]
[1770614770831,11.83785874,2092.3,2091.9,4.74672127]
[1770614771032,11.83785874,2092.3,2092.0,4.74672127]
[1770614771232,11.83785874,2092.3,2092.1,4.74672127]
[1770614771430,11.83785874,2092.3,2091.8,11.65907197]
[1770614771630,11.83785874,2092.3,2091.9,4.74743607]
[1770614771827,11.83785874,2092.3,2092.0,4.74743607]
[1770614772130,11.83785874,2092.3,2092.1,4.74743607]
[1770614772328,11.83785874,2092.3,2091.8,11.65907197]
[1770614772529,11.83785874,2092.3,2091.9,4.74786597]
[1770614772727,11.83785874,2092.3,2092.0,4.74786597]
[1770614772928,11.83785874,2092.3,2092.1,4.74786597]
[1770614773129,11.83785874,2092.3,2092.2,4.74786597]
[1770614773430,11.83785874,2092.3,2091.8,11.65907197]
[1770614773633,11.83785874,2092.3,2091.6,18.77582699]
[1770614774035,11.83785874,2092.3,2091.6,11.65907197]
[1770614774428,11.83785874,2092.3,2091.7,11.65907197]
[1770614775035,11.83785874,2092.3,2092.0,2.8478089]
[1770614777537,11.83785874,2092.3,2092.1,2.8478089]
[1770614777731,11.83785874,2092.3,2092.0,2.8478089]
[1770614778129,11.58865933,2092.8,2091.9,0.2392]
[1770614778328,11.58865933,2092.8,2091.9,10.72812875]
[1770614778729,11.58865933,2092.8,2091.8,10.72812875]
[1770614778929,11.58865933,2092.8,2091.6,7.11675502]
[1770614779137,11.58865933,2092.8,2091.5,10.72812875]
[1770614780735,11.58865933,2092.8,2091.6,10.72812875]
[1770614781141,11.58865933,2092.8,2091.8,10.72812875]
[1770614785239,11.58865933,2092.8,2091.9,15.36073278]
[1770614785438,11.58865933,2092.8,2092.0,4.63260403]
[1770614785633,11.58865933,2092.8,2092.1,4.63260403]
[1770614785837,11.58865933,2092.8,2091.8,5.70232395]
[1770614786239,11.58865933,2092.8,2091.7,16.4304527]
[1770614788446,11.58865933,2092.8,2091.7,10.72812875]
[1770614790550,11.58865933,2092.8,2091.8,15.01129366]
[1770614791152,11.58865933,2092.8,2091.8,4.28316491]
[1770614792651,11.58865933,2092.8,2091.8,15.01129366]
[1770614792946,11.58865933,2092.8,2091.8,10.72812875]
[1770614794148,11.58865933,2092.8,2091.7,4.28316491]
[1770614794856,11.58865933,2092.8,2091.7,15.01129366]
[1770614797754,11.58865933,2092.8,2091.8,4.40490135]
[1770614797950,11.58865933,2092.8,2091.6,5.70232395]
[1770614797951,11.58865933,2092.6,2091.6,15.01129366]
[1770614798851,10.92515187,2092.3,2091.4,0.00520075]
[1770614804760,11.16431187,2092.3,2091.4,0.00520075]
[1770614806962,11.16431187,2092.3,2091.4,11.50508928]
[1770614812567,11.16431187,2092.3,2091.4,0.00520075]
[1770614813761,10.49815505,2091.9,2091.0,11.49988853]
[1770614813962,10.60357843,2091.7,2090.8,11.49988853]
[1770614814862,10.60357843,2091.7,2090.8,11.5035666]
[1770614815569,10.60357843,2091.7,2090.8,0.00367807]
[1770614816172,10.84279843,2091.7,2090.8,0.00367807]
[1770614816957,10.84279843,2091.7,2090.7,11.49988853]
[1770614816958,10.6417463,2091.5,2090.5,11.49988853]
[1770614818069,10.64753861,2091.5,2090.5,11.50547196]
[1770614819368,10.40828861,2091.5,2090.5,11.50547196]
[1770614820166,10.51242077,2091.9,2090.5,11.50547196]
[1770614820372,10.51242077,2091.9,2090.8,11.49988853]
[1770614821265,0.00345696,2091.9,2090.8,14.24587523]
[1770614821467,10.52167004,2091.9,2090.8,14.24587523]
[1770614821665,0.00345696,2091.9,2090.8,14.24587523]
[1770614821964,10.39090446,2092.6,2090.9,11.49988853]
[1770614822369,10.39090446,2092.6,2091.1,11.49988853]
[1770614822574,10.39090446,2092.6,2091.1,14.24587523]
[1770614823070,10.39452026,2092.6,2091.1,14.24587523]
[1770614823564,10.39452026,2092.6,2091.3,11.49988853]
[1770614823768,10.39452026,2092.6,2091.5,11.49988853]
[1770614830278,10.39452026,2092.6,2091.6,11.49988853]
[1770614837789,10.63364026,2092.6,2091.6,11.49988853]
[1770614838389,10.39452026,2092.6,2091.6,11.49988853]
[1770614840992,10.39452026,2092.6,2091.9,11.02587431]
[1770614848391,0.0036158,2092.6,2092.1,11.02587431]
[1770614848602,0.0036158,2092.6,2092.1,11.0314008]
[1770614849396,10.31826639,2093.0,2092.3,11.02587431]
[1770614850399,10.32389461,2093.0,2092.3,11.02587431]
[1770614851196,0.00562822,2093.0,2092.5,11.02587431]
[1770614851392,10.3463858,2093.2,2092.5,11.02587431]
[1770614852099,12.17601104,2093.2,2092.5,11.02587431]
[1770614852293,10.34749195,2092.9,2092.3,11.02587431]
[1770614852494,10.35344917,2092.9,2092.3,11.02587431]
[1770614852899,1.82962524,2092.8,2092.3,11.02587431]
[1770614853094,10.34749195,2092.7,2092.3,11.02587431]
[1770614853599,10.35344917,2092.9,2092.3,11.02587431]
[1770614854595,0.00595722,2092.9,2092.3,11.02587431]
[1770614854795,10.14969033,2092.9,2092.3,11.02587431]
[1770614859105,10.14969033,2092.9,2092.1,0.00552649]
[1770614859399,10.14969033,2092.9,2092.1,11.0314008]
[1770614865105,10.38877033,2092.9,2092.1,11.0314008]
[1770614878907,10.17531643,2092.6,2092.1,11.0314008]
[1770614879910,9.83173087,2092.9,2092.1,11.0314008]
[1770614881410,9.82577365,2092.6,2092.1,0.00552649]
[1770614881616,9.82577365,2092.3,2091.9,11.01535409]
[1770614882515,9.82577365,2092.3,2091.9,10.05096056]
[1770614883515,10.813271,2092.6,2091.9,10.05096056]
[1770614886115,0.00595722,2092.9,2091.9,10.05096056]
[1770614886116,10.8010033,2092.9,2091.9,10.05096056]
[1770614886510,10.8010033,2092.9,2091.9,12.90932854]
[1770614891019,11.0400933,2092.9,2091.9,10.05096056]
[1770614891520,10.87247441,2092.8,2091.9,10.05096056]
[1770614892608,10.87247441,2092.8,2091.9,12.90932854]
[1770614893011,11.11157441,2092.8,2091.9,10.05096056]
[1770614893216,10.80743883,2092.7,2091.9,10.05096056]
[1770614893720,10.80743883,2092.6,2091.9,10.05096056]
[1770614905229,12.61485127,2092.4,2091.7,10.76326568]
[1770614906424,12.61485127,2092.4,2091.7,10.76855883]
[1770614906629,10.78503525,2092.4,2091.7,10.76855883]
[1770614907835,0.23913,2092.5,2091.7,10.76855883]
[1770614908134,10.81410087,2092.6,2091.8,10.76326568]
[1770614909127,2.8644457,2092.7,2091.8,10.76326568]
[1770614909432,10.77925601,2092.8,2091.8,13.62163366]
[1770614909730,10.77925601,2092.8,2091.9,10.76326568]
[1770614911929,10.85007809,2092.9,2092.0,10.76326568]
[1770614912133,0.00595722,2092.9,2092.1,13.62163366]
[1770614912337,0.00595722,2092.9,2092.2,10.76326568]
[1770614913225,10.85007809,2092.9,2092.2,10.76326568]
[1770614916434,0.00595722,2092.9,2092.2,10.76326568]
[1770614919437,10.63635415,2093.4,2092.4,10.76326568]
[1770614919638,10.63635415,2093.4,2092.5,10.76326568]
[1770614920329,10.63997565,2093.4,2092.5,10.76326568]
[1770614923640,10.63997565,2093.4,2092.3,2.85836798]
[1770614923849,10.21428421,2092.9,2092.3,10.76326568]
[1770614925242,10.21428421,2092.9,2092.2,11.69640811]
[1770614925443,4.69240357,2093.3,2091.9,11.69640811]
[1770614925444,10.30909617,2092.7,2091.9,11.69640811]
[1770614929345,10.29897796,2093.0,2091.9,11.69640811]
[1770614933841,10.3591414,2092.9,2091.9,11.69640811]
[1770614935450,13.19334481,2093.0,2091.9,11.69640811]
[1770614935750,10.33538603,2092.9,2091.9,11.69640811]
[1770614936249,13.19334481,2093.0,2091.9,11.69640811]
[1770614936449,10.33538603,2093.0,2091.9,14.5489021]
[1770614936852,10.33538603,2093.0,2092.1,11.69640811]
[1770614937553,10.55728902,2093.1,2092.1,11.69640811]
[1770614939153,10.56424219,2093.0,2092.1,11.69640811]
[1770614939751,13.42220097,2093.2,2092.1,14.5489021]
[1770614940053,10.56424219,2093.2,2092.3,11.69640811]
[1770614943360,13.26789076,2093.4,2092.3,14.5489021]
[1770614943554,10.40631048,2093.3,2092.5,11.69640811]
[1770614954869,12.23469832,2093.3,2092.5,11.69640811]
[1770614956666,10.47765653,2093.0,2092.5,11.69640811]
[1770614959073,12.18593605,2093.1,2092.5,11.69640811]
[1770614959271,10.35754821,2093.1,2092.5,11.69640811]
[1770614962573,1.82838784,2093.3,2092.5,11.69640811]
[1770614962773,12.38705933,2093.3,2092.5,11.69640811]
[1770614964275,12.38705933,2093.3,2092.5,14.5489021]
[1770614965876,12.38705933,2093.3,2092.5,11.69640811]
[1770614966268,12.38705933,2093.3,2092.5,14.5489021]
[1770614967471,10.55867149,2093.3,2092.5,14.5489021]
[1770614968076,2.86158028,2093.4,2092.7,11.49950645]
[1770614968269,0.0036215,2093.4,2092.7,11.49950645]
[1770614968576,10.48337285,2093.4,2092.7,11.49950645]
[1770614968776,10.48337285,2093.4,2092.7,14.35200044]
[1770614972581,10.55685248,2093.2,2092.7,11.49950645]
[1770614973080,0.0036215,2093.4,2092.7,14.35200044]
[1770614973475,10.5383032,2093.4,2092.7,14.35200044]
[1770614974079,10.5383032,2093.4,2092.7,11.49950645]
[1770614974580,10.5383032,2093.4,2092.7,14.35200044]
[1770614974780,10.5383032,2093.4,2092.7,11.49950645]
[1770614978581,10.5383032,2093.4,2092.7,14.35200044]
[1770614978783,10.5383032,2093.4,2092.7,11.49950645]
[1770614981389,0.0036215,2093.4,2092.7,14.35200044]
[1770614981589,10.54617368,2093.4,2092.7,14.35200044]
[1770614983496,10.51138338,2093.2,2092.7,14.35200044]
[1770614983696,10.51138338,2093.2,2092.7,11.49950645]
[1770614983892,10.51500488,2093.4,2092.7,11.49950645]
[1770614992201,13.37296366,2093.4,2092.7,11.49950645]
[1770614994207,2.86158028,2093.4,2092.7,11.49950645]
[1770614994505,13.44359155,2093.4,2092.7,11.49950645]
[1770614994807,10.58201127,2093.3,2092.7,11.49950645]
[1770614997108,10.58201127,2093.3,2092.7,14.35200044]
[1770614997708,2.86158028,2093.4,2092.7,14.35200044]
[1770614998305,10.61852759,2093.4,2092.7,14.35200044]
[1770614999009,0.0036215,2093.4,2092.7,14.35200044]
[1770615000612,0.0036215,2093.4,2092.9,11.8491133]
[1770615000804,13.4462073,2093.7,2093.1,11.8491133]
[1770615001004,2.85795878,2093.8,2093.1,11.8491133]
[1770615001201,10.62482488,2093.9,2093.1,14.70160729]
[1770615002010,12.45717281,2093.9,2093.1,14.70160729]
[1770615002211,10.62878497,2093.9,2093.1,11.8491133]
[1770615002411,10.62878497,2093.9,2093.3,11.8491133]
[1770615002611,10.62878497,2093.9,2093.3,11.85480279]
[1770615002911,13.48278366,2094.5,2093.7,11.8491133]
[1770615003109,10.68315872,2094.2,2093.5,11.8491133]
[1770615003306,10.68315872,2094.0,2093.5,11.8491133]
[1770615004014,10.68895077,2094.0,2093.5,11.8491133]
[1770615005308,12.27014065,2094.5,2093.5,11.8491133]
[1770615005610,12.27014065,2094.5,2093.7,11.8491133]
[1770615005815,10.44175281,2094.5,2093.7,11.8491133]
[1770615006011,4.68634662,2094.7,2093.9,11.8491133]
[1770615006012,10.44175281,2094.7,2093.9,11.8491133]
[1770615006210,12.27014065,2094.7,2093.9,11.8491133]
[1770615006407,12.27392381,2094.7,2093.9,11.8491133]
[1770615007106,10.44553597,2094.7,2093.9,11.8491133]
[1770615007309,10.44553597,2094.7,2093.5,11.8491133]
[1770615007505,9.7606316,2094.3,2093.5,11.8491133]
[1770615007913,40.6586316,2094.3,2093.4,11.8491133]
[1770615008111,9.7606316,2094.2,2093.4,11.8491133]
[1770615010313,9.97873565,2094.0,2093.3,0.00568949]
[1770615011114,9.97873565,2094.0,2093.3,11.85480279]
[1770615011516,2.85795878,2094.2,2093.3,11.85480279]
[1770615011517,9.91479107,2094.1,2093.3,11.85480279]
[1770615011809,9.91479107,2094.2,2093.3,11.85480279]
[1770615015421,10.03733418,2093.9,2093.3,0.00568949]
[1770615015615,10.03733418,2093.9,2093.3,10.93447046]
[1770615017017,10.03733418,2093.9,2093.3,0.00568949]
[1770615018825,10.03733418,2093.9,2092.6,8.11416491]
[1770615018826,10.39581885,2093.6,2092.8,11.31217301]
[1770615019919,10.39581885,2093.6,2092.8,11.31815655]
[1770615023430,10.39581885,2093.6,2092.8,0.00598354]
[1770615023625,10.39581885,2093.6,2092.8,11.31815655]
[1770615024724,9.89700558,2093.8,2092.8,11.31815655]
[1770615025227,10.24840215,2094.0,2093.0,11.31217301]
[1770615026232,12.07439385,2094.0,2093.0,11.31217301]
[1770615026723,10.24840215,2093.9,2093.0,11.31217301]
[1770615030033,10.18447352,2093.6,2092.8,11.31815655]
[1770615030236,10.18447352,2093.3,2092.6,11.31217301]
[1770615031324,10.18447352,2093.3,2092.6,11.31692329]
[1770615032027,10.18447352,2093.3,2092.6,0.00475028]
[1770615033633,10.18447352,2093.3,2092.6,11.31692329]
[1770615034833,11.12637913,2093.5,2092.6,11.31692329]
[1770615035042,11.62453156,2093.7,2092.6,11.31692329]
[1770615035229,11.62453156,2093.7,2092.7,11.31217301]
[1770615038037,14.0438648,2093.9,2092.7,11.31217301]
[1770615038238,10.94693602,2093.8,2092.8,11.31217301]
[1770615040041,13.30550858,2093.9,2092.8,11.31217301]
[1770615040437,10.4475498,2093.9,2092.9,2.85249399]
[1770615040743,10.4475498,2093.9,2093.0,11.31217301]
[1770615044240,11.01397058,2093.8,2093.0,11.31217301]
[1770615044440,11.01397058,2093.7,2093.0,11.31217301]
[1770615045240,11.01397058,2093.7,2092.8,11.5057829]
[1770615047448,2.85795878,2093.6,2092.8,11.5057829]
[1770615047640,13.62083469,2093.6,2092.8,11.5057829]
[1770615047840,10.76287591,2093.6,2092.8,11.5057829]
[1770615048852,10.76287591,2093.7,2092.8,11.5057829]
[1770615049050,10.76287591,2093.7,2092.8,14.35827689]
[1770615049349,10.76287591,2093.7,2092.8,11.5057829]
[1770615049742,10.76287591,2093.7,2092.8,14.35778826]
[1770615050547,10.76287591,2093.7,2092.8,11.5057829]
[1770615050950,10.76287591,2093.7,2092.8,14.35778826]
[1770615053355,10.76287591,2093.7,2092.8,11.5057829]
[1770615053845,10.873952,2093.6,2092.8,11.5057829]
[1770615054151,10.873952,2093.5,2092.8,11.5057829]
[1770615054353,13.73311261,2093.4,2092.6,0.00475028]
[1770615054552,10.873952,2093.3,2092.6,0.00475028]
[1770615055254,41.773952,2093.3,2092.6,0.00475028]
[1770615055453,10.82692506,2093.2,2092.6,11.51053318]
[1770615055654,10.83292173,2093.2,2092.6,11.51053318]
[1770615056349,0.00599667,2093.2,2092.6,11.51053318]
[1770615058254,10.88507063,2093.2,2092.6,11.51053318]
[1770615059956,0.00599667,2093.2,2092.6,11.51053318]
[1770615065660,44.62325864,2093.6,2092.6,11.51053318]
[1770615066152,44.62325864,2093.6,2092.6,14.36253854]
[1770615066554,41.76751585,2093.6,2092.6,14.36253854]
[1770615070072,30.90541782,2093.6,2092.6,14.36253854]
[1770615070769,30.90541782,2093.6,2092.8,11.5057829]
[1770615071769,30.90541782,2093.6,2093.0,11.5057829]
[1770615071965,10.69005463,2093.9,2093.0,14.35778826]
[1770615072274,10.69005463,2094.1,2093.2,11.5057829]
[1770615073174,10.6946254,2094.1,2093.2,11.5057829]
[1770615077373,10.76302054,2094.2,2093.2,11.5057829]
[1770615077680,10.76302054,2094.2,2093.2,14.35778826]
[1770615078380,10.76887135,2094.2,2093.2,14.35778826]
[1770615078873,0.00585081,2094.2,2093.2,14.35778826]
[1770615079072,0.00585081,2094.2,2093.4,11.0165283]
[1770615080475,10.74866403,2094.1,2093.4,11.0165283]
[1770615080674,10.74866403,2094.1,2093.3,6.68300536]
[1770615080675,10.98761403,2094.1,2093.3,14.8475283]
[1770615081481,10.71908771,2093.9,2093.1,11.0165283]
[1770615082080,10.95805771,2093.9,2092.7,11.0165283]
[1770615082476,10.71908771,2093.8,2092.7,11.0165283]
[1770615083072,10.27093826,2093.7,2092.7,11.0165283]
[1770615083274,10.27093826,2093.6,2092.7,11.0165283]
[1770615087485,10.40477983,2093.5,2092.6,11.02127858]
[1770615088187,10.40477983,2093.4,2092.6,11.02127858]
[1770615092880,12.42471188,2093.2,2092.6,11.02127858]
[1770615094890,10.59621491,2093.2,2092.6,11.02127858]
[1770615096692,10.55116706,2093.3,2092.6,11.02127858]
[1770615101392,10.55116706,2093.3,2092.3,11.0165283]
[1770615101594,10.50423202,2093.0,2091.8,11.0165283]
[1770615101789,10.74331202,2093.0,2091.8,11.0165283]
[1770615101994,14.46771851,2092.8,2091.8,11.0165283]
[1770615102293,11.72494862,2092.7,2091.8,11.0165283]
[1770615102494,11.7289025,2092.7,2091.8,11.0219707]
[1770615105293,11.9680125,2092.7,2091.8,0.0054424]
[1770615105596,11.9680125,2092.7,2091.5,10.86266133]
[1770615106398,11.9680125,2092.7,2091.5,10.86741884]
[1770615107588,11.54774989,2092.6,2091.5,10.86741884]
[1770615109397,11.54774989,2092.5,2091.5,10.86741884]
[1770615112598,73.89762763,2092.7,2091.7,10.86266133]
[1770615112599,14.39978155,2092.7,2091.7,10.86266133]
[1770615112793,11.54774989,2093.4,2091.9,10.86266133]
[1770615113295,11.54774989,2093.4,2092.0,2.84985786]
[1770615113499,11.54774989,2093.4,2092.1,10.86266133]
[1770615113702,11.55333051,2093.4,2092.1,10.86266133]
[1770615113903,11.55333051,2093.4,2092.2,10.86266133]
[1770615115003,11.55333051,2093.4,2092.3,10.86266133]
[1770615117213,11.54774989,2093.3,2092.3,10.86266133]
[1770615119107,0.00558062,2093.4,2092.3,10.86266133]
[1770615119313,11.54774989,2093.3,2092.4,10.86266133]
[1770615119817,11.54774989,2093.1,2092.4,10.86266133]
[1770615120414,11.54774989,2093.0,2092.4,10.86266133]
[1770615121519,11.54774989,2092.7,2092.1,2.84985786]
[1770615121714,11.54774989,2092.7,2092.0,10.86266133]
[1770615123211,11.54774989,2092.7,2092.1,10.86266133]
[1770615125530,16.32774989,2092.7,2092.1,10.86266133]
[1770615125731,11.54774989,2092.6,2092.1,10.86266133]
[1770615126733,11.54774989,2092.5,2091.9,10.86266133]
[1770615129032,4.78,2092.6,2091.9,10.86266133]
[1770615129335,11.54774989,2092.7,2091.9,10.86266133]
[1770615129733,16.32774989,2092.7,2091.9,10.86266133]
[1770615130331,11.54774989,2092.6,2091.9,10.86266133]
[1770615133135,16.32774989,2092.6,2091.9,10.86266133]
[1770615134332,11.54774989,2092.2,2091.8,10.86266133]
[1770615134932,11.54774989,2092.5,2091.8,10.86266133]
[1770615135333,4.78,2092.4,2091.8,10.86266133]
[1770615135534,15.68319115,2092.4,2091.8,10.86266133]
[1770615138531,11.59909472,2092.3,2091.8,10.86266133]
[1770615139237,16.37909472,2092.1,2091.8,10.86266133]
[1770615139534,11.59909472,2092.1,2091.8,10.86266133]
[1770615139932,11.59909472,2092.1,2091.6,10.98616339]
[1770615140131,11.59909472,2092.0,2091.6,10.98616339]
[1770615144545,16.37909472,2092.1,2091.6,10.98616339]
[1770615148349,4.78,2092.1,2091.6,10.98616339]
[1770615148549,4.78,2092.1,2091.7,10.98616339]
[1770615149244,11.59909472,2092.5,2091.7,10.98616339]
[1770615149450,11.59909472,2092.5,2091.8,10.98616339]
[1770615149644,11.59909472,2092.5,2091.7,2.85679067]
[1770615150048,11.59909472,2092.5,2091.6,13.84295406]
[1770615150551,11.59909472,2092.5,2091.7,10.98616339]
[1770615151246,11.59909472,2092.5,2091.7,13.84295406]
[1770615151444,11.59909472,2092.5,2091.5,13.84771157]
[1770615151445,11.59909472,2092.4,2091.5,13.84771157]
[1770615151646,11.59909472,2092.3,2091.5,13.84771157]
[1770615151851,11.59909472,2092.3,2091.5,10.9909209]
[1770615152950,13.42973591,2092.3,2091.5,0.00475751]
[1770615153854,11.59909472,2092.2,2091.3,13.84295406]
[1770615154647,11.59909472,2092.1,2091.3,13.84295406]
[1770615154948,11.59909472,2092.1,2091.3,13.8480771]
[1770615155747,11.59909472,2092.1,2091.4,10.98616339]
[1770615157249,11.59909472,2092.1,2091.3,0.00512304]
[1770615157450,11.59909472,2091.9,2091.3,0.00512304]
[1770615157754,11.6049578,2091.9,2091.3,0.00512304]
[1770615157954,11.6049578,2091.9,2091.3,1e-08]
[1770615160055,54.49028191,2091.9,2091.3,1e-08]
[1770615160253,11.83830472,2091.8,2090.9,10.98616339]
[1770615160458,11.59909472,2091.6,2090.9,10.98616339]
[1770615161362,11.59909472,2091.6,2090.9,10.99138216]
[1770615162958,11.59909472,2091.6,2090.9,0.00521877]
[1770615163363,11.59909472,2091.6,2090.6,10.98616339]
[1770615164359,11.59909472,2091.6,2090.6,10.99104264]
[1770615165359,11.59909472,2091.6,2090.7,10.69888824]
[1770615170162,11.59909472,2091.6,2090.6,10.70376749]
[1770615171961,54.72364883,2091.6,2090.6,0.00487925]
[1770615172171,11.85679067,2091.5,2090.6,10.70376749]
[1770615178868,11.85679067,2091.5,2090.7,10.69888824]
[1770615179771,11.85679067,2091.8,2090.7,10.69888824]
[1770615179975,11.85679067,2091.8,2090.8,10.69888824]
[1770615181973,11.85679067,2091.5,2090.7,2.85679067]
[1770615182172,11.85679067,2091.2,2090.6,0.00487925]
[1770615182972,11.85679067,2091.4,2090.6,10.70376749]
[1770615183176,14.7180363,2091.4,2090.6,10.70376749]
[1770615185280,11.85679067,2091.2,2090.6,10.70376749]
[1770615193187,14.7180363,2091.2,2090.6,10.70376749]
[1770615194688,11.85679067,2091.2,2090.6,10.70376749]
[1770615194889,11.85679067,2091.2,2090.6,0.00487925]
[1770615195085,14.7180363,2091.2,2090.6,0.00487925]
[1770615195691,14.7180363,2091.2,2090.6,10.99310553]
[1770615198389,14.72480974,2091.2,2090.6,0.00487925]
[1770615199584,11.49992655,2091.0,2090.6,0.00487925]
[1770615200485,14.36794562,2091.0,2090.6,0.00487925]
[1770615200685,14.36794562,2091.0,2090.4,2.8680389]
[1770615201288,14.36794562,2091.0,2090.3,13.58228759]
[1770615201690,14.36794562,2091.0,2090.3,13.58705432]
[1770615201990,14.36794562,2091.0,2090.4,10.71424869]
[1770615204492,2.86801907,2091.0,2090.4,10.71424869]
[1770615204692,14.36794562,2091.1,2090.5,10.71424869]
[1770615209393,11.49992655,2090.9,2090.4,2.8680389]
[1770615209598,11.49992655,2090.7,2090.3,2.87280563]
[1770615210197,13.33200555,2090.5,2090.0,4.27484197]
[1770615210393,11.49992655,2090.2,2089.8,10.71424869]